fUSD/lending_fUSD_20251028
["ID","MTS","AMOUNT","RATE_DAILY","PERIOD"]
[392550975,1761645042978,-209.26913858,0.00029926,5]
[392550976,1761645042987,-12524.36500678,0.00029926,2]
[392550977,1761645042997,-4349.98700021,0.00029926,2]
[392550978,1761645043007,-459.77085778,0.00029956,7]
[392550979,1761645043017,-500.0,0.00029956,7]
[392550980,1761645043027,-500.0,0.00029956,7]
[392550981,1761645043036,-501.71292426,0.00029973,5]
[392550982,1761645043045,-500.0,0.00029973,5]
[392550983,1761645043055,-500.0,0.00029973,5]
[392550984,1761645043064,-505.45411216,0.00029973,5]
[392550985,1761645043073,-500.0,0.00029973,5]
[392550986,1761645043082,-1289.71,0.0002998,2]
[392550987,1761645043091,-1289.71,0.0002998,2]
[392550988,1761645043102,-284877.2643,0.0002999,3]
[392550989,1761645043111,-308959.648738,0.0002999,3]
[392550990,1761645043121,-156.35802683,0.0002999,2]
[392550991,1761645043130,-153.49,0.0002999,2]
[392550992,1761645043139,-2348530.08475483,0.0003,2]
[392550993,1761645043253,-9940.41131595,0.0003,2]
[392550995,1761645045718,-345.24912,0.0003,2]
[392550996,1761645045959,-1028.48453288,0.0003,2]
[392550997,1761645045974,-11448.0,0.0003,2]
[392550999,1761645047026,220.0,0.0002,10]
[392551000,1761645058744,248.91,0.0002,10]
[392551001,1761645069884,248.91,0.0002,10]
[392551114,1761645619996,150.0,0.00015002,2]
[392551187,1761646231781,-280.3354519,0.00023439,2]
[392551188,1761646231791,-1872.86934096,0.00023448,60]
[392551189,1761646231886,-194.171135,0.00023321,2]
[392551190,1761646231896,-129.04964767,0.00023448,60]
[392551191,1761646231905,-195.0,0.00023548,2]
[392551192,1761646231915,-172.08908799,0.00023795,2]
[392551193,1761646231935,-300.0,0.00023894,2]
[392551194,1761646231944,-93.78318965,0.00023894,2]
[392551195,1761646232007,-56.21681035,0.00023894,2]
[392551196,1761646232017,-300.0,0.00023894,2]
[392551197,1761646232027,-1200.0,0.00023894,2]
[392551198,1761646232036,-1200.0,0.00023895,2]
[392551199,1761646232046,-152.97262088,0.00023895,2]
[392551200,1761646232057,-192.80836535,0.00023895,2]
[392551201,1761646232066,-500.0,0.00023895,2]
[392551202,1761646232076,-216.68938768,0.00023895,2]
[392551203,1761646232085,-500.0,0.00023895,2]
[392551204,1761646232094,-495.51437203,0.00023895,2]
[392551205,1761646232104,-500.0,0.00023895,2]
[392551206,1761646232123,-500.0,0.00023895,2]
[392551207,1761646232135,-500.0,0.00023895,2]
[392551208,1761646232146,-500.0,0.00023895,2]
[392551209,1761646232155,-500.0,0.00023895,2]
[392551210,1761646232164,-500.0,0.00023895,2]
[392551211,1761646232178,-500.0,0.00023895,2]
[392551212,1761646232187,-201.16341661,0.00023895,2]
[392551213,1761646232196,-500.0,0.00023895,2]
[392551214,1761646232205,-500.0,0.00023895,2]
[392551215,1761646232215,-500.0,0.00023895,2]
[392551216,1761646232224,-22.84063952,0.00023895,2]
[392551217,1761646232236,-477.15936048,0.00023895,2]
[392551218,1761646232245,-250.49873645,0.00023895,2]
[392551219,1761646232258,-249.50126355,0.00023895,2]
[392551220,1761646232267,-329.71138328,0.00023895,2]
[392551223,1761646237667,-170.28861672,0.00023895,2]
[392551224,1761646237677,-500.0,0.00023895,2]
[392551225,1761646237686,-500.0,0.00023895,2]
[392551226,1761646237695,-500.0,0.00023895,2]
[392551227,1761646237704,-500.0,0.00023895,2]
[392551228,1761646237713,-500.0,0.00023895,2]
[392551229,1761646237723,-500.0,0.00023895,2]
[392551230,1761646237731,-500.0,0.00023895,2]
[392551231,1761646237741,-500.0,0.00023895,2]
[392551232,1761646237751,-500.0,0.00023895,2]
[392551233,1761646237760,-500.0,0.00023895,2]
[392551234,1761646237770,-500.0,0.00023895,2]
[392551235,1761646237780,-500.0,0.00023895,2]
[392551236,1761646237789,-500.0,0.00023895,2]
[392551237,1761646237798,-500.0,0.00023895,2]
[392551238,1761646237807,-500.0,0.00023895,2]
[392551239,1761646237816,-500.0,0.00023895,2]
[392551240,1761646237825,-500.0,0.00023895,2]
[392551241,1761646237834,-500.0,0.00023895,2]
[392551242,1761646237844,-500.0,0.00023895,2]
[392551243,1761646237853,-500.0,0.00023895,2]
[392551244,1761646237862,-500.0,0.00023895,2]
[392551245,1761646237871,-500.0,0.00023895,2]
[392551246,1761646237880,-500.0,0.00023895,2]
[392551247,1761646237889,-500.0,0.00023895,2]
[392551248,1761646237898,-500.0,0.00023895,2]
[392551249,1761646237907,-500.0,0.00023895,2]
[392551250,1761646237916,-500.0,0.00023895,2]
[392551251,1761646237925,-500.0,0.00023895,2]
[392551252,1761646237934,-500.0,0.00023895,2]
[392551253,1761646237943,-500.0,0.00023895,2]
[392551254,1761646237952,-500.0,0.00023895,2]
[392551255,1761646237961,-500.0,0.00023895,2]
[392551256,1761646237970,-500.0,0.00023895,2]
[392551257,1761646237980,-200.0,0.00023895,2]
[392551259,1761646237989,-500.0,0.00023895,2]
[392551261,1761646237998,-500.0,0.00023895,2]
[392551263,1761646238007,-500.0,0.00024,2]
[392551265,1761646238016,-500.0,0.00024,2]
[392551267,1761646238026,-500.0,0.00024932,2]
[392551269,1761646238036,-500.0,0.00024932,2]
[392551270,1761646238045,-500.0,0.00024932,2]
[392551272,1761646238054,-151.0,0.00025642,2]
[392551274,1761646238064,-151.0,0.00025642,2]
[392551276,1761646238078,-151.0,0.00025642,2]
[392551278,1761646238089,-210.65546756,0.00025642,2]
[392551280,1761646238099,-151.0,0.00025642,2]
[392551283,1761646238109,-151.0,0.00025642,2]
[392551285,1761646238118,-151.0,0.00025642,2]
[392551287,1761646238128,-151.0,0.00025642,2]
[392551289,1761646238137,-151.0,0.00025642,2]
[392551290,1761646238147,-151.0,0.00025642,2]
[392551291,1761646238156,-151.0,0.00025642,2]
[392551292,1761646238166,-189.23314707,0.00025642,2]
[392551293,1761646238181,-151.0,0.00025642,2]
[392551294,1761646238190,-151.0,0.00025642,2]
[392551295,1761646238200,-151.0,0.00025642,2]
[392551296,1761646238210,-151.0,0.00025642,2]
[392551297,1761646238221,-151.0,0.00025642,2]
[392551298,1761646238230,-151.0,0.00025642,2]
[392551299,1761646238240,-151.0,0.00025642,2]
[392551300,1761646238250,-33.69338456,0.00025642,2]
[392551301,1761646238262,-117.30661544,0.00025642,2]
[392551302,1761646238272,-151.0,0.00025642,2]
[392551303,1761646238281,-71.18893705,0.00025642,2]
[392551304,1761646238292,-79.81106295,0.00025642,2]
[392551305,1761646238301,-279.29511949,0.00025642,2]
[392551306,1761646238311,-945.82823195,0.00025656,2]
[392551307,1761646238331,-58.30275864,0.00025656,2]
[392551308,1761646238340,-765.24766846,0.00025657,2]
[392551309,1761646238352,-939.23805153,0.00025657,2]
[392551310,1761646238363,-500.0,0.00025657,2]
[392551311,1761646238375,-300.0,0.00025657,2]
[392551312,1761646241132,-20956.0464452,0.00025657,2]
[392551313,1761646241141,-653.8972311,0.00025773,2]
[392551314,1761646241150,-250.0,0.00025773,2]
[392551315,1761646241160,-195.0,0.00025838,2]
[392551316,1761646241169,-5148.90456408,0.00025903,2]
[392551317,1761646241183,-220.29779578,0.00025903,2]
[392551318,1761646241192,-420.0,0.00025915,2]
[392551319,1761646241201,-1399.0,0.00025916,2]
[392551320,1761646241211,-1680.0,0.00026033,2]
[392551321,1761646241222,-188.9,0.00026719,2]
[392551322,1761646241235,-319.0,0.00027,2]
[392551323,1761646241243,-166.66,0.00027066,30]
[392551324,1761646241254,-300.0,0.00027186,2]
[392551325,1761646241264,-150.0,0.00027186,2]
[392551326,1761646241273,-150.0,0.00028035,2]
[392551327,1761646241283,-1000.0,0.00028035,2]
[392551328,1761646241292,-1220.28,0.00028095,120]
[392551329,1761646241302,-587.0,0.00028106,2]
[392551330,1761646241317,-2351.0,0.00028364,2]
[392551332,1761646241327,-1000.0,0.00028531,2]
[392551334,1761646241336,-394.29,0.00028766,2]
[392551335,1761646241345,-166.66,0.00028876,2]
[392551336,1761646241354,-152.0,0.00028907,3]
[392551337,1761646241363,-816.97627422,0.00028957,2]
[392551338,1761646241372,-250.0,0.00028982,2]
[392551339,1761646241382,-168.0,0.00029109,2]
[392551340,1761646241391,-183.43425549,0.00029607,2]
[392551341,1761646241401,-262.96477597,0.00029607,2]
[392551342,1761646241410,-620.0,0.00029607,2]
[392551343,1761646241419,-168.0,0.0002969,2]
[392551344,1761646241428,-558.0,0.0002972,2]
[392551345,1761646241438,-663.655,0.0002972,2]
[392551346,1761646241447,-6463.0,0.0002972,2]
[392551347,1761646241456,-576.4481714,0.00029785,2]
[392551348,1761646241465,-242.57512913,0.00029785,2]
[392551349,1761646241474,-252.86783411,0.00029785,2]
[392551350,1761646241483,-7916.45014577,0.00029786,2]
[392551351,1761646241492,-166.66,0.00029829,2]
[392551352,1761646241502,-225.19,0.00029861,2]
[392551353,1761646241511,-1123.813367,0.00029876,2]
[392551354,1761646241521,-354.80276484,0.00029884,2]
[392551355,1761646241530,-159.37123418,0.0002989,15]
[392551356,1761646241539,-2559.80024823,0.0002989,2]
[392551357,1761646241548,-234.15485705,0.0002989,2]
[392551358,1761646241559,-1123.81336699,0.0002989,2]
[392551359,1761646241569,-1000.4096783,0.000299,2]
[392551360,1761646241578,-162.28100394,0.000299,2]
[392551361,1761646241587,-2313.64108112,0.000299,2]
[392551362,1761646241603,-1185.73851298,0.000299,2]
[392551363,1761646241612,-354.80276484,0.00029907,2]
[392551364,1761646241621,-292.83024077,0.00029912,2]
[392551365,1761646241633,-2266.97000737,0.00029912,2]
[392551366,1761646241642,-168.0,0.00029927,2]
[392551367,1761646241651,-283.46076542,0.00029929,2]
[392551368,1761646241662,-71.34199942,0.00029929,2]
[392551369,1761646241672,-2559.80024814,0.00029934,2]
[392551370,1761646241681,-200.0,0.0002995,2]
[392551371,1761646241690,-354.80276484,0.00029952,2]
[392551372,1761646241699,-2559.80024814,0.00029956,2]
[392551373,1761646241708,-500.0,0.00029956,7]
[392551374,1761646241717,-500.0,0.00029956,7]
[392551375,1761646241726,-220.0,0.0002996,2]
[392551376,1761646241735,-510.117515,0.0002997,2]
[392551377,1761646241744,-166.0,0.0002997,120]
[392551378,1761646241754,-501.65524573,0.00029973,5]
[392551379,1761646241763,-501.62053605,0.00029973,5]
[392551380,1761646241772,-206.11638794,0.00029973,5]
[392551381,1761646241781,-160.48497202,0.00029973,5]
[392551382,1761646241790,-160.40192733,0.00029973,2]
[392551383,1761646241802,-215.0,0.00029973,5]
[392551384,1761646241812,-457.0,0.00029974,2]
[392551385,1761646241821,-354.80276484,0.00029974,2]
[392551386,1761646241830,-2559.80024814,0.00029978,2]
[392551387,1761646241839,-166.0,0.0002998,120]
[392551388,1761646241849,-547.84426555,0.0002998,3]
[392551389,1761646241862,-57359.08721745,0.0002998,3]
[392551390,1761646241873,-7874.71824741,0.0002998,3]
[392551391,1761646241886,-457.0,0.0002998,2]
[392551392,1761646241895,-457.0,0.0002998,2]
[392551393,1761646241904,-179.52408359,0.0002998,2]
[392551394,1761646241914,-505.09440529,0.0002998,2]
[392551395,1761646241924,-457.0,0.00029983,2]
[392551396,1761646241933,-125995.491959,0.00029984,3]
[392551397,1761646241943,-457.0,0.00029984,2]
[392551398,1761646241954,-500.0,0.00029989,3]
[392551399,1761646241963,-500.0,0.00029989,3]
[392551400,1761646241973,-247.79639866,0.00029989,3]
[392551401,1761646241983,-500.0,0.00029989,3]
[392551402,1761646241996,-528.32351556,0.00029989,3]
[392551403,1761646242005,-506.70220008,0.00029989,3]
[392551404,1761646242015,-500.0,0.00029989,3]
[392551405,1761646242023,-500.0,0.00029989,3]
[392551406,1761646242033,-500.0,0.00029989,3]
[392551407,1761646242042,-500.0,0.00029989,3]
[392551408,1761646242051,-500.0,0.00029989,3]
[392551409,1761646242060,-512.52179248,0.00029989,3]
[392551410,1761646242069,-500.0,0.00029989,3]
[392551411,1761646242078,-500.0,0.00029989,3]
[392551412,1761646242087,-500.0,0.00029989,3]
[392551413,1761646242096,-552.79977446,0.00029989,3]
[392551414,1761646242106,-500.0,0.00029989,3]
[392551415,1761646242115,-500.0,0.00029989,3]
[392551416,1761646242123,-500.0,0.00029989,2]
[392551417,1761646242133,-500.0,0.00029989,3]
[392551418,1761646242143,-500.0,0.00029989,3]
[392551419,1761646242152,-166.0,0.0002999,120]
[392551420,1761646242161,-500.0,0.0002999,15]
[392551421,1761646242170,-157494.364948,0.0002999,3]
[392551422,1761646242184,-205.0,0.0002999,3]
[392551423,1761646242193,-151.28,0.0002999,2]
[392551424,1761646242206,-169.38786241,0.0002999,2]
[392551425,1761646242217,-29560.05280779,0.0002999,2]
[392551426,1761646242226,-151.0,0.00029991,7]
[392551427,1761646242236,-500.0,0.00029993,3]
[392551428,1761646242246,-500.0,0.00029993,3]
[392551429,1761646242256,-500.0,0.00029993,3]
[392551430,1761646242265,-512.49221784,0.00029993,3]
[392551431,1761646242277,-232402.0016346,0.00029994,2]
[392551432,1761646242286,-3984.1409014,0.00029994,2]
[392551433,1761646242296,-153.3787473,0.00029994,2]
[392551434,1761646242305,-6734.9088521,0.00029994,2]
[392551435,1761646242314,-354.80276484,0.00029997,2]
[392551436,1761646242323,-155.46121285,0.00029997,7]
[392551437,1761646242334,-300.0,0.00029999,10]
[392551438,1761646242344,-500.0,0.00029999,3]
[392551439,1761646242353,-500.0,0.00029999,3]
[392551440,1761646242363,-500.0,0.00029999,3]
[392551441,1761646242373,-601.00645407,0.00029999,3]
[392551442,1761646242382,-500.0,0.00029999,3]
[392551443,1761646242391,-500.0,0.00029999,3]
[392551444,1761646242401,-300.0,0.00029999,10]
[392551445,1761646242410,-300.0,0.00029999,10]
[392551446,1761646242420,-666.0,0.00029999,10]
[392551447,1761646242428,-559.39200343,0.00029999,3]
[392551448,1761646242439,-300.0,0.00029999,10]
[392551449,1761646242448,-2559.80024814,0.00029999,2]
[392551450,1761646242458,-159.0,0.0003,5]
[392551451,1761646242467,-563122.65927473,0.0003,2]
[392551452,1761646242480,-866.31182605,0.0003,2]
[392551456,1761646242998,-57227.3052999,0.0003,2]
[392551465,1761646245818,-2305.45,0.0003,2]
[392551466,1761646246079,-47780.35810036,0.0003,2]
[392551467,1761646246133,-559.12384528,0.0003,2]
[392551471,1761646345494,-246.0,0.00023893,2]
[392551472,1761646345522,-9.82015767,0.00023894,2]
[392551478,1761646699265,-160.0,0.00023789,2]
[392551479,1761646914921,-1336.0,0.000242,3]
[392551480,1761646971881,-5515.0,0.000245,5]
[392551483,1761647107701,49850.0,0.00015,2]
[392551484,1761647107734,168000.0,0.00015,2]
[392551485,1761647107788,5891838.90528848,0.00015,2]
[392551487,1761647125391,-4732.60079809,0.00021,2]
[392551491,1761647138663,-1009.19611799,0.00024,2]
[392551493,1761647206196,-237.69519008,0.0002211,2]
[392551494,1761647216214,5000.0,0.000162,5]
[392551495,1761647228238,-12440.86014054,0.000225,2]
[392551496,1761647230377,-500.0,0.000225,2]
[392551497,1761647231936,-501.3157321,0.000225,2]
[392551498,1761647233535,-184.0,0.000225,2]
[392551499,1761647235108,-940.42916511,0.000225,2]
[392551500,1761647237229,-796.97167199,0.000225,2]
[392551501,1761647240894,-1091.42916511,0.000225,2]
[392551502,1761647242453,-168.0,0.000225,2]
[392551503,1761647246023,-796.97167199,0.000225,2]
[392551504,1761647247481,-940.42916511,0.000225,2]
[392551505,1761647249724,-1000.0,0.000225,2]
[392551506,1761647251262,-796.97167199,0.000225,2]
[392551507,1761647255064,-489.17961144,0.000221,2]
[392551508,1761647255088,-451.30164852,0.000225,2]
[392551509,1761647257751,-796.97167199,0.00022499,2]
[392551510,1761647259270,-261.02832801,0.00022499,2]
[392551511,1761647259294,-679.4008371,0.000225,2]
[392551512,1761647260862,-629.57248526,0.000225,2]
[392551524,1761647313600,222.05641683,0.0001421,7]
[392551525,1761647315713,4458.28082449,0.00014999,2]
[392551534,1761647431988,-754.78810055,0.000215,2]
[392551535,1761647436032,-5783.50962653,0.000215,2]
[392551536,1761647436042,-150.0,0.000215,2]
[392551537,1761647436051,-300.0,0.00022498,2]
[392551538,1761647436060,-300.0,0.00022498,2]
[392551539,1761647436069,-1200.0,0.00022498,2]
[392551540,1761647436079,-500.0,0.00022498,2]
[392551541,1761647436088,-500.0,0.00022498,2]
[392551543,1761647436098,-500.0,0.00022498,2]
[392551545,1761647436107,-500.0,0.00022498,2]
[392551547,1761647436116,-500.0,0.00022498,2]
[392551549,1761647436125,-259.22393383,0.00022498,2]
[392551550,1761647436134,-500.0,0.00022498,2]
[392551551,1761647436143,-500.0,0.00022498,2]
[392551553,1761647436152,-500.0,0.00022498,2]
[392551555,1761647436161,-500.0,0.00022498,2]
[392551556,1761647436171,-500.0,0.00022498,2]
[392551557,1761647436180,-500.0,0.00022498,2]
[392551558,1761647436189,-500.0,0.00022498,2]
[392551559,1761647436198,-500.0,0.00022498,2]
[392551560,1761647436207,-500.0,0.00022498,2]
[392551562,1761647436217,-500.0,0.00022498,2]
[392551563,1761647436226,-500.0,0.00022498,2]
[392551565,1761647436236,-500.0,0.00022498,2]
[392551567,1761647436245,-500.0,0.00022498,2]
[392551569,1761647436254,-500.0,0.00022498,2]
[392551571,1761647436263,-13192.50918561,0.000225,2]
[392551573,1761647436272,-500.0,0.000225,2]
[392551575,1761647436281,-500.0,0.000225,2]
[392551577,1761647436290,-500.0,0.00023048,2]
[392551579,1761647436300,-500.0,0.00023048,2]
[392551582,1761647436309,-772.1652056,0.00024,2]
[392551585,1761647436318,-9598.26933522,0.00024289,2]
[392551588,1761647436328,-420.0,0.00024435,2]
[392551590,1761647436337,-420.0,0.00024435,2]
[392551591,1761647436346,-1680.0,0.00024549,2]
[392551592,1761647436355,-1763.06,0.00025,2]
[392551593,1761647436364,-267.58,0.00026018,2]
[392551594,1761647436373,-587.0,0.0002654,2]
[392551595,1761647436382,-2184.0,0.00026788,2]
[392551596,1761647436391,-150.0,0.00027,2]
[392551597,1761647436400,-150.0,0.00027143,2]
[392551598,1761647436409,-170.25,0.0002795,2]
[392551599,1761647436418,-169.80259039,0.00028497,2]
[392551600,1761647436427,-177.00748388,0.00028497,2]
[392551601,1761647436436,-403.51371998,0.00028497,2]
[392551602,1761647436446,-200.0,0.00028498,2]
[392551603,1761647436457,-43290.67,0.00028498,2]
[392551604,1761647436466,-170.33,0.00028556,2]
[392551605,1761647436475,-13043.05199695,0.00028661,2]
[392551606,1761647436484,-170.33,0.00028756,2]
[392551607,1761647436494,-823.0,0.00028825,2]
[392551608,1761647436503,-250.0,0.00028907,2]
[392551609,1761647436517,-170.33,0.00028956,2]
[392551610,1761647436527,-200.0,0.00028979,2]
[392551611,1761647436536,-252.58,0.00029015,2]
[392551612,1761647436545,-170.33,0.00029156,2]
[392551613,1761647436555,-400.0,0.00029282,2]
[392551614,1761647436565,-253.84551687,0.00029291,2]
[392551615,1761647436575,-170.25,0.00029348,2]
[392551616,1761647436585,-170.33,0.00029356,2]
[392551617,1761647436595,-170.33,0.00029556,2]
[392551618,1761647436604,-170.33,0.00029756,2]
[392551619,1761647436613,-2446.80531308,0.00029756,2]
[392551620,1761647436622,-6157.60659713,0.0002989,2]
[392551621,1761647436631,-938.33382012,0.000299,2]
[392551622,1761647436641,-160.53722172,0.000299,2]
[392551623,1761647436650,-285.83268094,0.000299,2]
[392551624,1761647436659,-170.33,0.00029956,2]
[392551625,1761647436668,-500.0,0.00029956,7]
[392551626,1761647436678,-500.0,0.00029956,7]
[392551627,1761647436687,-10184.34819394,0.00029961,2]
[392551628,1761647436701,-24388.83745967,0.00029961,2]
[392551629,1761647436712,-15254.49266429,0.00029961,2]
[392551630,1761647436722,-150.5,0.0002997,120]
[392551631,1761647436732,-500.0,0.00029973,5]
[392551632,1761647436741,-500.0,0.00029973,5]
[392551633,1761647436751,-172.1347704,0.00029973,5]
[392551634,1761647436761,-500.0,0.00029973,2]
[392551635,1761647436772,-501.3157321,0.00029973,5]
[392551636,1761647436781,-150.5,0.0002998,120]
[392551637,1761647436791,-17022.53745323,0.0002998,3]
[392551638,1761647439922,-37827.98571007,0.0002998,3]
[392551639,1761647439934,-15749.4364948,0.0002998,3]
[392551640,1761647439944,-500.0,0.00029983,3]
[392551641,1761647439956,-500.0,0.00029983,3]
[392551642,1761647439965,-94496.618969,0.00029986,3]
[392551643,1761647439974,-15749.4364948,0.00029989,3]
[392551644,1761647439984,-520.64428885,0.00029989,3]
[392551645,1761647439994,-506.70220008,0.00029989,3]
[392551646,1761647440003,-500.0,0.00029989,3]
[392551647,1761647440012,-500.0,0.00029989,3]
[392551648,1761647440022,-512.52179248,0.00029989,3]
[392551649,1761647440032,-500.0,0.00029989,3]
[392551650,1761647440043,-552.79977446,0.00029989,3]
[392551651,1761647440052,-500.0,0.00029989,3]
[392551652,1761647440061,-500.0,0.00029989,3]
[392551653,1761647440070,-500.0,0.00029989,3]
[392551654,1761647440080,-500.0,0.00029989,3]
[392551655,1761647440090,-500.0,0.00029989,3]
[392551656,1761647440099,-500.0,0.00029989,3]
[392551657,1761647440108,-500.0,0.00029989,3]
[392551658,1761647440118,-500.0,0.00029989,3]
[392551659,1761647440128,-500.0,0.00029989,3]
[392551660,1761647440137,-500.0,0.00029989,3]
[392551661,1761647440147,-500.0,0.00029989,3]
[392551662,1761647440156,-150.5,0.0002999,120]
[392551663,1761647440166,-500.0,0.0002999,15]
[392551664,1761647440175,-165369.083196,0.0002999,3]
[392551665,1761647440187,-151.3,0.0002999,2]
[392551666,1761647440198,-172.00533302,0.0002999,2]
[392551667,1761647440209,-172.00533302,0.0002999,2]
[392551668,1761647440219,-151.0,0.00029995,7]
[392551669,1761647440230,-1087.3406927,0.00029995,2]
[392551670,1761647440239,-500.0,0.00029995,3]
[392551671,1761647440248,-500.0,0.00029995,3]
[392551672,1761647440258,-500.0,0.00029995,3]
[392551673,1761647440435,-500.0,0.00029995,2]
[392551674,1761647440445,-7884.8031396,0.00029996,2]
[392551675,1761647440454,-182574.3233169,0.00029996,2]
[392551676,1761647440463,-3250.4231666,0.00029996,2]
[392551677,1761647440473,-292.13499486,0.00029997,7]
[392551678,1761647440482,-151.0,0.00029997,7]
[392551679,1761647440491,-6157.60659709,0.00029998,2]
[392551680,1761647440501,-500.0,0.00029999,3]
[392551681,1761647440511,-500.0,0.00029999,3]
[392551682,1761647440524,-500.0,0.00029999,3]
[392551683,1761647440534,-500.0,0.00029999,3]
[392551684,1761647440543,-500.0,0.00029999,3]
[392551685,1761647440554,-500.0,0.00029999,3]
[392551686,1761647440563,-500.0,0.00029999,3]
[392551687,1761647440573,-500.0,0.00029999,3]
[392551688,1761647440585,-500.0,0.00029999,3]
[392551689,1761647440596,-500.0,0.00029999,3]
[392551690,1761647440606,-500.0,0.00029999,3]
[392551691,1761647440616,-500.0,0.00029999,3]
[392551692,1761647440625,-500.0,0.00029999,3]
[392551693,1761647440635,-500.0,0.00029999,3]
[392551694,1761647440644,-164.87559345,0.00029999,3]
[392551695,1761647440654,-500.0,0.00029999,3]
[392551696,1761647440663,-528.32351556,0.00029999,3]
[392551697,1761647440673,-300.0,0.00029999,10]
[392551698,1761647440683,-300.0,0.00029999,10]
[392551699,1761647440693,-666.0,0.00029999,10]
[392551700,1761647440703,-512.49221784,0.00029999,3]
[392551701,1761647440712,-300.0,0.00029999,10]
[392551702,1761647440722,-500.0,0.00029999,3]
[392551703,1761647440731,-500.0,0.00029999,3]
[392551704,1761647440740,-559.39200343,0.00029999,3]
[392551705,1761647440750,-500.0,0.00029999,3]
[392551706,1761647440759,-500.0,0.00029999,3]
[392551707,1761647440768,-500.0,0.00029999,3]
[392551708,1761647440778,-500.0,0.00029999,3]
[392551709,1761647440788,-500.0,0.00029999,3]
[392551710,1761647440797,-500.0,0.00029999,3]
[392551711,1761647440806,-500.0,0.00029999,3]
[392551712,1761647440815,-500.0,0.00029999,3]
[392551713,1761647440824,-500.0,0.00029999,3]
[392551714,1761647440834,-500.0,0.00029999,3]
[392551715,1761647440844,-500.0,0.00029999,3]
[392551716,1761647440854,-351.16226879,0.00029999,3]
[392551717,1761647440863,-1000.0,0.00029999,3]
[392551718,1761647440872,-500.0,0.00029999,3]
[392551719,1761647440881,-343.04368678,0.00029999,3]
[392551720,1761647440892,-300.0,0.00029999,10]
[392551721,1761647440901,-666.0,0.00029999,10]
[392551722,1761647440910,-587822.14152585,0.0003,2]
[392551723,1761647441245,-1.6e-07,0.0003,2]
[392551724,1761647441272,-21747.56850284,0.0003,2]
[392551731,1761647443145,-1281.5,0.0003,2]
[392551732,1761647443160,-309.19431425,0.0003,2]
[392551749,1761647445995,-499.99999999,0.00022498,2]
[392551750,1761647446006,-6041.80965808,0.0003,2]
[392551751,1761647446017,-42831.42949838,0.0003,2]
[392551752,1761647446028,-3358.15960474,0.0003,2]
[392551753,1761647446039,-150365.45599005,0.0003,2]
[392551754,1761647446050,-133241.47966897,0.0003,2]
[392551766,1761647464767,276.35,0.00013699,2]
[392551767,1761647546437,339.26405131,0.00015,30]
[392551780,1761648547136,-1000.0,0.0002,2]
[392551781,1761648547160,-276.35,0.00020187,2]
[392551782,1761648547181,-256.0,0.000237,5]
[392551783,1761648547201,-251.49,0.00025341,2]
[392551784,1761648547223,-150.0,0.00025806,2]
[392551785,1761648547244,-276.35,0.00026676,2]
[392551786,1761648547264,-1817.22,0.00027,2]
[392551787,1761648548120,250.0,0.00017,2]
[392551789,1761648632059,-322.34,0.00028844,2]
[392551790,1761648632069,-594.58987659,0.00028879,2]
[392551791,1761648632080,-405.41012341,0.00028879,2]
[392551792,1761648632089,-224.92,0.00028918,2]
[392551793,1761648632100,-1672.96545323,0.00029003,2]